bitfinex/quotes_ETHUSD_20241024
["timestamp","ask_amount","ask_price","bid_price","bid_amount"]
[1729738495622,3.64215812,2552.2,2551.8,0.04480581]
[1729738496118,3.64215812,2552.2,2551.9,0.04480581]
[1729738496414,3.64215812,2552.2,2551.7,2.62974082]
[1729738496623,3.64215812,2552.2,2552.0,0.04480581]
[1729738496785,3.64215812,2552.2,2551.6,4.81573082]
[1729738496979,3.64215812,2552.2,2552.1,0.04480581]
[1729738497187,1.2902,2551.9,2551.4,3.52739]
[1729738497525,0.01,2551.8,2551.4,3.52739]
[1729738498518,0.01,2551.8,2551.4,4.81603082]
[1729738500515,0.01,2551.8,2551.5,1.28864082]
[1729738501602,0.01,2551.8,2551.4,5.7770379]
[1729738502239,0.01,2551.8,2551.4,2.2496479]
[1729738502413,1.2902,2551.5,2551.1,1.2664]
[1729738502613,1.2902,2551.5,2551.1,4.81651082]
[1729738503210,1.2902,2551.5,2551.2,0.0431957]
[1729738503916,0.10578812,2551.4,2551.2,0.0431957]
[1729738504099,0.10578812,2551.4,2550.8,3.52822]
[1729738504100,0.10578812,2551.4,2550.9,4.81672082]
[1729738504299,0.10578812,2551.4,2551.0,0.87814674]
[1729738505427,0.10578812,2551.4,2551.0,4.86029348]
[1729738505742,0.10578812,2551.4,2551.1,1.28864082]
[1729738506319,0.10578812,2551.4,2551.2,0.04365266]
[1729738507348,0.01,2551.4,2551.2,0.04365266]
[1729738508712,0.01,2551.4,2551.2,1.33229348]
[1729738509220,0.01,2551.4,2551.2,0.04365266]
[1729738509422,0.01,2551.4,2551.2,1.33229348]
[1729738510024,0.01,2551.4,2551.2,0.04365266]
[1729738511042,0.01,2551.4,2551.0,4.81662082]
[1729738511246,0.01,2551.4,2551.3,0.04365266]
[1729738511734,0.01,2551.4,2551.0,1.28864082]
[1729738511930,0.01,2551.4,2551.1,0.04365266]
[1729738513334,0.01,2551.4,2551.1,1.33229348]
[1729738513847,0.01,2551.4,2551.2,1.28864082]
[1729738514045,0.01,2551.4,2551.1,4.86017348]
[1729738514218,1.3002,2551.5,2551.2,1.28864082]
[1729738514421,1.2722,2551.7,2551.4,4.81609082]
[1729738514650,1.2722,2551.7,2551.4,1.28864082]
[1729738514944,0.01,2551.7,2551.5,1.33229348]
[1729738515154,1.2722,2551.9,2551.6,1.28864082]
[1729738515455,1.2722,2551.9,2551.6,3.05173218]
[1729738515747,1.2622,2551.9,2551.7,1.33248934]
[1729738515975,0.01,2552.0,2551.7,4.85952934]
[1729738516181,0.01,2552.0,2551.7,1.33248934]
[1729738516865,0.01,2552.0,2551.7,0.04384852]
[1729738517382,0.01,2552.0,2551.7,1.33248934]
[1729738517680,0.01,2552.0,2551.7,0.04384852]
[1729738517838,0.01,2552.0,2551.7,2.34748541]
[1729738518048,0.01,2552.0,2551.7,5.87453541]
[1729738518888,0.01,2552.0,2551.7,2.34748541]
[1729738519190,0.01,2552.0,2551.8,1.28864082]
[1729738519340,0.01,2552.0,2551.7,5.87453541]
[1729738519543,0.01,2552.0,2551.8,0.72222083]
[1729738519849,0.01,2552.0,2551.9,0.04378324]
[1729738520182,0.01,2552.0,2551.5,4.81584082]
[1729738520363,0.01,2552.0,2551.9,0.04375526]
[1729738520573,0.01,2552.0,2551.5,8.34308082]
[1729738520744,0.01,2552.0,2551.9,0.0437029]
[1729738521144,0.01,2552.0,2551.6,4.81583082]
[1729738521367,0.01,2552.0,2551.7,0.0437029]
[1729738521890,0.01,2552.0,2551.5,4.81584082]
[1729738522250,0.01,2552.0,2551.6,0.0437029]
[1729738523158,1.323,2551.9,2551.6,0.0437029]
[1729738524090,0.01,2551.8,2551.6,0.0437029]
[1729738525979,0.01,2551.8,2551.6,4.85953372]
[1729738526302,0.01,2551.8,2551.6,2.30578496]
[1729738527757,0.01,2551.8,2551.7,1.28864082]
[1729738527988,0.01,2552.1,2551.8,1.2734]
[1729738528161,1.43878812,2552.3,2551.8,6.08885082]
[1729738528356,1.43878812,2552.3,2551.9,4.81541082]
[1729738528592,1.43878812,2552.3,2551.9,4.85874999]
[1729738528754,1.43878812,2552.3,2551.9,3.57010917]
[1729738529185,1.343,2552.3,2551.9,3.57010917]
[1729738530191,1.343,2552.3,2552.1,1.28864082]
[1729738530399,0.02,2552.3,2552.1,1.28864082]
[1729738530865,0.02,2552.3,2552.2,0.04333917]
[1729738531668,0.02,2552.3,2552.1,1.28864082]
[1729738531869,0.02,2552.3,2552.2,0.04333917]
[1729738532184,0.02,2552.3,2552.1,1.28864082]
[1729738532494,0.02,2552.3,2552.2,0.04333917]
[1729738534392,1.323,2552.5,2552.2,2.68374327]
[1729738534604,0.01,2552.6,2552.3,0.26837433]
[1729738534814,0.01,2552.5,2552.3,0.26837433]
[1729738535302,0.01,2552.5,2552.4,0.04333917]
[1729738535901,0.01,2552.5,2552.2,2.56204082]
[1729738536103,0.01,2552.5,2552.2,1.88224108]
[1729738536272,0.01,2552.5,2552.3,0.04333917]
[1729738536472,0.01,2552.5,2552.2,3.1708819]
[1729738536786,0.01,2552.5,2552.3,0.04333917]
[1729738537177,0.01,2552.5,2552.2,3.1708819]
[1729738537367,0.01,2552.5,2552.4,0.04333917]
[1729738537795,0.01,2552.5,2552.2,1.2734]
[1729738538111,0.01,2552.5,2552.2,2.56204082]
[1729738538278,0.01,2552.5,2552.3,0.04333917]
[1729738538607,0.10578812,2552.6,2552.2,2.56204082]
[1729738538908,0.01,2552.5,2552.3,0.60884108]
[1729738539091,0.01,2552.5,2552.4,0.04333917]
[1729738539874,0.01,2552.6,2552.4,0.04333917]
[1729738540219,1.333,2552.7,2552.5,4.81458082]
[1729738540220,0.01,2552.7,2552.5,4.81458082]
[1729738540399,0.01,2552.7,2552.6,0.485792]
[1729738540723,0.01,2552.7,2552.6,0.52820808]
[1729738541777,0.01,2552.7,2552.6,0.04241608]
[1729738542104,0.01,2552.7,2552.4,4.81461082]
[1729738542410,0.01,2552.7,2552.5,1.28864082]
[1729738542575,0.01,2552.7,2552.5,0.04241608]
[1729738543414,0.01,2552.7,2552.5,1.3310569]
[1729738543711,0.01,2552.7,2552.6,0.48571369]
[1729738544210,0.01,2552.7,2552.6,0.52812977]
[1729738545278,0.00910232,2552.7,2552.6,0.52812977]
[1729738549299,0.00910232,2552.7,2552.6,0.04241608]
[1729738549627,1.43349044,2552.7,2552.3,1.28864082]
[1729738549787,1.43349044,2552.7,2552.6,0.04208985]
[1729738550085,1.43349044,2552.7,2552.3,1.28864082]
[1729738550485,1.43349044,2552.7,2552.4,0.04208985]
[1729738551526,4.95918044,2552.7,2552.4,0.04208985]
[1729738551825,4.95918044,2552.7,2552.1,4.81506082]
[1729738552031,4.95918044,2552.7,2552.5,0.04182885]
[1729738552325,4.95918044,2552.7,2552.2,1.28864082]
[1729738552491,4.95918044,2552.7,2552.6,0.04182885]
[1729738552691,4.95918044,2552.7,2552.2,1.28864082]
[1729738552890,4.95918044,2552.7,2552.6,0.04182885]
[1729738553091,4.95918044,2552.7,2552.2,1.28864082]
[1729738553287,4.95918044,2552.7,2552.2,1.96272751]
[1729738553496,4.95918044,2552.7,2552.3,0.04182885]
[1729738553836,4.95918044,2552.7,2552.2,1.28864082]
[1729738554130,1.43349044,2552.7,2552.2,1.28864082]
[1729738554327,1.43349044,2552.7,2552.3,0.04182885]
[1729738554501,1.43349044,2552.7,2552.3,1.28864082]
[1729738554708,4.95919044,2552.7,2552.4,0.04182885]
[1729738554931,4.95919044,2552.7,2552.2,1.28864082]
[1729738555094,4.95919044,2552.7,2552.3,0.04182885]
[1729738555294,4.95919044,2552.7,2552.2,1.9014449]
[1729738555525,4.95919044,2552.7,2552.3,0.04182885]
[1729738555730,4.95919044,2552.7,2552.2,1.9014449]
[1729738555910,4.95919044,2552.7,2552.3,0.04195001]
[1729738556121,1.43349044,2552.7,2552.2,1.9014449]
[1729738556297,1.43349044,2552.7,2552.3,0.93738682]
[1729738556627,0.01,2552.6,2552.3,2.22602764]
[1729738556834,0.01,2552.6,2552.3,0.93738682]
[1729738558756,1.3247,2552.5,2552.3,0.04195933]
[1729738558912,0.10578812,2552.4,2551.8,1.3623]
[1729738559115,4.85096,2552.3,2551.8,1.3623]
[1729738559317,4.85096,2552.3,2551.5,3.52725]
[1729738559318,0.01,2552.0,2551.9,0.04195933]
[1729738559627,0.01,2552.0,2551.8,1.28864082]
[1729738559836,0.01,2552.0,2551.9,0.03982711]
[1729738560426,0.01,2552.0,2551.9,1.32846793]
[1729738561341,1.3247,2552.1,2551.9,1.32846793]
[1729738561504,0.01,2552.2,2552.0,1.28864082]
[1729738561701,0.01,2552.2,2552.1,1.28864082]
[1729738561896,0.00910232,2552.2,2552.1,1.32887809]
[1729738562133,1.33380232,2552.5,2552.1,5.31705312]
[1729738562339,1.33380232,2552.5,2552.3,1.28864082]
[1729738562640,1.33380232,2552.5,2552.2,1.28864082]
[1729738562936,1.33380232,2552.5,2552.3,1.28864082]
[1729738563303,0.01,2552.6,2552.4,1.32887809]
[1729738563633,0.00910232,2552.7,2552.5,1.28864082]
[1729738563820,0.00910232,2552.7,2552.6,1.28864082]
[1729738564027,0.00910232,2552.7,2552.6,1.32915774]
[1729738565241,0.00910232,2553.1,2552.7,3.52565]
[1729738565537,0.00910232,2553.1,2552.9,1.28864082]
[1729738565904,0.00910232,2553.1,2553.0,0.04009747]
[1729738566509,0.00910232,2553.1,2552.7,7.05116]
[1729738566707,1.3247,2553.2,2552.9,1.3623]
[1729738566924,0.01910232,2553.3,2552.9,1.3623]
[1729738567124,0.01910232,2553.3,2553.0,3.52525]
[1729738567125,0.00910232,2553.3,2553.0,3.52525]
[1729738567327,0.00910232,2553.3,2553.0,7.16879775]
[1729738567539,0.00910232,2553.3,2553.0,3.56527747]
[1729738567722,0.00910232,2553.3,2553.1,0.49275775]
[1729738567927,1.4025519,2553.5,2553.2,0.03985519]
[1729738568414,0.05874958,2553.5,2553.2,0.03985519]
[1729738568640,0.05874958,2553.5,2553.3,1.2795]
[1729738568841,0.05874958,2553.5,2553.4,3.52471]
[1729738569118,0.05874958,2553.5,2553.4,4.36161452]
[1729738569651,0.05874958,2553.5,2553.4,4.40146971]
[1729738571962,0.05874958,2553.5,2553.4,2.15625971]
[1729738572163,0.1237382,2553.9,2553.5,5.35403]
[1729738572363,0.1237382,2553.9,2553.7,6.39869644]
[1729738572671,5.0,2555.1,2554.1,1.2795]
[1729738572821,5.0,2555.1,2555.0,3.5225]
[1729738573253,5.0,2555.1,2555.0,7.0725]
[1729738573559,4.95,2555.1,2555.0,7.11057576]
[1729738573721,0.05489044,2555.8,2555.2,3.52222]
[1729738574052,3.53155,2555.7,2555.0,1.47871622]
[1729738574216,0.01,2555.5,2555.3,0.03807576]
[1729738574422,0.01,2555.5,2554.9,7.67654644]
[1729738574654,3.52155,2555.7,2555.4,0.03807576]
[1729738574856,3.52155,2555.7,2554.9,7.67661644]
[1729738575043,3.52155,2555.7,2555.5,0.03807576]
[1729738575245,3.52155,2555.7,2554.9,7.67661644]
[1729738575435,3.873705,2555.7,2555.6,0.03807576]
[1729738575635,3.873705,2555.7,2554.9,4.15399644]
[1729738575965,3.5218,2555.6,2554.9,4.15399644]
[1729738576156,3.52155,2555.7,2555.0,0.03807576]
[1729738576532,7.04322,2555.7,2555.0,0.03807576]
[1729738576858,4.88879,2555.5,2555.0,0.03807576]
[1729738577427,3.52155,2555.7,2555.0,0.03807576]
[1729738577629,3.52155,2555.7,2555.0,1.16180298]
[1729738577853,3.52204,2555.4,2555.0,0.03807576]
[1729738578052,7.0435,2555.6,2555.0,0.03807576]
[1729738578254,7.0435,2555.6,2554.7,3.5228]
[1729738578255,3.52186,2555.5,2554.7,3.5228]
[1729738578731,3.52198,2555.4,2554.8,0.03807576]
[1729738578934,1.3669,2555.3,2554.6,0.60050613]
[1729738579155,1.3669,2555.3,2554.7,0.03807576]
[1729738579156,3.52263,2555.0,2554.7,0.03807576]
[1729738579869,3.5226,2555.0,2554.7,0.03807576]
[1729738580465,7.04463,2555.2,2554.7,0.03807576]
[1729738580841,3.52237,2555.1,2554.7,0.03807576]
[1729738581647,3.52237,2555.1,2554.4,3.52331]
[1729738581849,3.52237,2555.1,2554.8,0.03680657]
[1729738582162,3.52237,2555.1,2554.9,0.03680657]
[1729738582369,3.52237,2555.1,2554.4,4.64339264]
[1729738582535,3.52237,2555.1,2554.5,0.11509152]
[1729738583250,3.52237,2555.1,2554.5,0.07828495]
[1729738583571,3.52237,2555.1,2554.4,4.64339264]
[1729738583572,3.5223,2555.2,2554.4,1.12008264]
[1729738583768,3.5225,2555.0,2554.4,1.12008264]
[1729738584075,4.01122,2555.2,2554.4,4.64340264]
[1729738584674,7.53353,2555.2,2554.4,4.64340264]
[1729738584838,3.5223,2555.2,2554.5,0.07828203]
[1729738585335,1.3669,2555.3,2554.8,1.3569]
[1729738585560,4.80293,2555.6,2554.9,0.07827241]
[1729738586164,1.2812,2555.6,2554.8,0.07826783]
[1729738586477,3.52181,2555.5,2554.7,3.52282]
[1729738586662,3.52181,2555.5,2554.8,0.352282]
[1729738588579,3.52196,2555.4,2554.8,0.352282]
[1729738588787,3.5222,2555.3,2554.8,0.352282]
[1729738588981,3.5222,2555.3,2554.5,8.40313]
[1729738589185,3.52244,2555.1,2554.5,1.3569]
[1729738589389,4.80364,2555.1,2554.5,1.3569]
[1729738589586,3.52267,2554.9,2554.5,1.3569]
[1729738589746,3.52267,2554.9,2554.4,1.12008264]
[1729738589945,3.52267,2554.9,2554.3,1.3569]
[1729738591280,1.2812,2555.1,2554.1,3.0]
[1729738591461,3.523,2554.7,2554.0,4.88067]
[1729738591787,1.2812,2554.6,2554.0,1.3569]
[1729738591997,3.52321,2554.5,2554.0,1.3569]
[1729738592161,3.52321,2554.5,2554.0,2.197406]
[1729738592754,7.04649,2554.5,2554.0,2.197406]
[1729738592957,3.52321,2554.5,2554.0,1.3569]
[1729738596096,3.52321,2554.5,2554.1,0.03446983]
[1729738596995,7.04648,2554.5,2554.1,0.03446983]
[1729738597172,3.52321,2554.5,2554.1,0.03446983]
[1729738597772,3.52347,2554.3,2554.1,0.03446983]
[1729738597974,3.52321,2554.5,2554.1,0.03446983]
[1729738599496,3.52347,2554.3,2554.1,0.03446983]
[1729738599859,3.52347,2554.3,2553.8,1.3569]
[1729738600067,7.04653,2554.5,2554.2,0.03500949]
[1729738600261,3.52321,2554.5,2553.8,4.88104]
[1729738600600,3.52321,2554.5,2553.9,0.54817578]
[1729738600803,7.04647,2554.5,2554.0,0.03500949]
[1729738600959,3.52321,2554.5,2554.0,0.03500949]
[1729738603499,3.52321,2554.5,2554.0,0.11331012]
[1729738603696,3.52321,2554.5,2554.0,0.03500949]
[1729738604493,3.52334,2554.4,2554.0,0.03500949]
[1729738604859,3.52334,2554.4,2553.8,1.3569]
[1729738605107,3.52321,2554.5,2554.1,0.03441131]
[1729738605286,3.52321,2554.5,2553.8,1.3569]
[1729738605595,3.52342,2554.4,2553.8,1.3569]
[1729738605799,3.52342,2554.4,2553.9,0.03441131]
[1729738613112,1.2812,2554.6,2553.9,0.03441131]
[1729738613275,4.90899,2554.2,2553.9,0.03441131]
[1729738613685,4.90899,2554.2,2553.7,0.60071777]
[1729738613686,8.43267,2554.2,2553.7,0.60071777]
[1729738613886,8.43267,2554.2,2554.0,0.03463469]
[1729738614197,5.752247,2554.2,2553.5,4.80485]
[1729738614403,8.43266,2554.2,2553.5,4.80485]
[1729738614700,8.43266,2554.2,2553.6,0.03463469]
[1729738615492,4.90898,2554.2,2553.6,0.03463469]
[1729738615714,3.52376,2554.1,2553.6,0.03463469]
[1729738616094,4.90898,2554.2,2553.6,0.03463469]
[1729738616725,8.43267,2554.2,2553.6,0.03463469]
[1729738617021,4.90898,2554.2,2553.6,0.03463469]
[1729738617689,8.43271,2554.2,2553.6,0.03463469]
[1729738617890,4.90898,2554.2,2553.6,0.03463469]
[1729738618519,8.43267,2554.2,2553.6,0.03463469]
[1729738618815,8.43266,2554.2,2553.6,0.03463469]
[1729738619116,4.90898,2554.2,2553.6,0.03463469]
[1729738619928,3.52379,2554.1,2553.6,0.03463469]
[1729738620082,3.52379,2554.1,2553.6,0.51858416]
[1729738620419,4.90898,2554.2,2553.6,0.51858416]
[1729738620727,4.90898,2554.2,2553.6,0.59689571]
[1729738621027,4.90835,2554.6,2553.7,1.35861155]
[1729738621184,4.90817,2554.8,2554.0,3.52387]
[1729738621389,4.90817,2554.8,2554.1,1.71098492]
[1729738621585,3.52266,2554.9,2554.2,3.52353]
[1729738621824,3.52266,2554.9,2554.3,0.0349698]
[1729738622744,3.52232,2555.2,2554.5,3.52319]
[1729738622884,3.52232,2555.2,2554.7,1.2803]
[1729738623089,1.3853,2555.1,2554.6,0.0348488]
[1729738623332,4.90778,2555.1,2554.5,1.2803]
[1729738623492,4.90778,2555.1,2554.7,0.0348488]
[1729738623822,8.43026,2555.1,2554.5,1.2803]
[1729738624027,4.90776,2555.1,2554.8,0.0348488]
[1729738624516,4.90776,2555.1,2554.6,0.480354]
[1729738624727,8.43023,2555.1,2554.9,0.0348488]
[1729738625026,8.43023,2555.1,2555.0,0.0348488]
[1729738625329,8.43023,2555.1,2554.6,0.480354]
[1729738625731,3.52251,2555.0,2554.6,0.480354]
[1729738625892,3.52251,2555.0,2554.7,0.0348488]
[1729738626290,4.90776,2555.1,2554.7,0.0348488]
[1729738626518,3.52266,2554.9,2554.7,0.0348488]
[1729738626891,3.52266,2554.9,2554.5,1.2803]
[1729738627327,3.52266,2554.9,2554.6,0.0348488]
[1729738628189,3.52281,2554.8,2554.6,0.0348488]
[1729738628423,3.52291,2554.7,2554.6,0.0348488]
[1729738628644,3.52291,2554.7,2554.3,1.2803]
[1729738628841,3.52291,2554.7,2554.6,0.0348488]
[1729738629043,7.04593,2554.7,2554.3,1.2803]
[1729738629247,3.52308,2554.6,2554.3,1.2803]
[1729738629545,4.88851,2554.7,2554.3,1.2803]
[1729738629910,3.52291,2554.7,2554.3,1.2803]
[1729738630115,3.52291,2554.7,2554.3,1.7959417]
[1729738631037,3.52278,2554.8,2554.3,1.7959417]
[1729738631239,4.88831,2554.9,2554.3,1.7959417]
[1729738631622,4.88791,2555.2,2554.5,1.3102]
[1729738631827,3.52202,2555.4,2554.7,1.3102]
[1729738632044,3.52213,2555.3,2554.8,0.483312]
[1729738632426,3.5225,2555.0,2554.8,0.483312]
[1729738632659,3.52214,2555.3,2554.7,1.3102]
[1729738632958,3.52231,2555.2,2554.7,1.3102]
[1729738633728,3.52214,2555.3,2554.7,1.3102]
[1729738633927,3.52222,2555.2,2554.7,1.3102]
[1729738634826,3.52249,2555.1,2554.7,1.3102]
[1729738635229,3.52222,2555.2,2554.7,1.3102]
[1729738635428,3.52251,2555.0,2554.7,1.3102]
[1729738636336,3.52266,2554.9,2554.4,1.3102]
[1729738636521,3.52266,2554.9,2554.4,2.14514017]
[1729738637831,3.52251,2555.0,2554.4,2.14514017]
[1729738639252,3.52228,2555.2,2554.5,4.91155568]
[1729738639453,3.52228,2555.2,2554.5,4.83327]
[1729738639660,3.52228,2555.2,2554.6,0.85427066]
[1729738640939,3.52228,2555.2,2554.7,1.3102]
[1729738644065,3.52243,2555.1,2554.7,1.3102]
[1729738644275,3.52236,2555.1,2554.7,1.3102]
[1729738648679,3.0,2555.7,2554.7,1.3102]
[1729738648680,3.52205,2555.4,2554.7,1.3102]
[1729738648966,3.52225,2555.2,2554.7,1.3102]
[1729738650042,7.04455,2555.2,2554.7,1.3102]
[1729738650551,3.52225,2555.2,2554.7,1.3102]
[1729738650752,7.04457,2555.2,2554.7,1.3102]
[1729738651149,3.52225,2555.2,2554.7,1.3102]
[1729738651352,7.04456,2555.2,2554.7,1.3102]
[1729738652388,7.04456,2555.2,2554.7,2.59489955]
[1729738652684,3.52225,2555.2,2554.8,1.28469955]
[1729738652892,3.52225,2555.2,2554.7,2.59489955]
[1729738653188,7.04459,2555.2,2554.7,2.59489955]
[1729738653390,3.52225,2555.2,2554.7,2.59489955]
[1729738653804,7.0446,2555.2,2554.7,2.59489955]
[1729738654419,3.52225,2555.2,2554.7,2.59489955]
[1729738655085,7.04458,2555.2,2554.7,2.59489955]
[1729738655893,3.52225,2555.2,2554.7,2.59489955]
[1729738656104,3.52244,2555.1,2554.7,1.3102]
[1729738658599,3.52252,2555.0,2554.7,1.3102]
[1729738664076,3.52267,2554.9,2554.5,1.2963]
[1729738664284,3.52267,2554.9,2554.5,2.29023797]
[1729738666591,7.04539,2554.9,2554.5,2.29023797]
[1729738666791,3.52299,2554.7,2554.2,1.2963]
[1729738667002,3.52327,2554.5,2553.7,1.2963]
[1729738667290,3.52305,2554.6,2554.1,2.58099955]
[1729738667891,3.52305,2554.6,2554.2,1.28469955]
[1729738668717,3.77775996,2554.7,2554.1,1.2963]
[1729738669021,3.52319,2554.5,2554.1,2.58099955]
[1729738669181,3.52319,2554.5,2554.2,0.03448576]
[1729738670325,3.52334,2554.4,2554.2,0.03448576]
[1729738670500,3.52319,2554.5,2554.2,0.03448576]
[1729738670706,7.04647,2554.5,2554.2,0.03448576]
[1729738671227,3.52319,2554.5,2554.2,1.31918531]
[1729738671537,3.52319,2554.5,2554.2,0.03448576]
[1729738671825,3.52319,2554.5,2554.2,1.31918531]
[1729738672727,3.52319,2554.5,2554.2,0.03448576]
[1729738673434,1.2629,2554.4,2554.2,0.03448576]
[1729738673636,3.52347,2554.3,2553.7,3.0]
[1729738673934,3.52372,2554.2,2553.8,1.28469955]
[1729738674493,3.52376,2554.1,2553.7,1.28469955]
[1729738674698,3.52389,2554.0,2553.6,1.2963]
[1729738674995,1.301,2553.9,2553.2,3.52488]
[1729738675201,3.52389,2554.0,2553.6,1.28469955]
[1729738675431,3.52389,2554.0,2553.5,1.28469955]
[1729738675640,3.52389,2554.0,2553.7,1.2808]
[1729738675934,3.52366,2554.2,2553.7,2.56549955]
[1729738676235,3.52383,2554.1,2553.7,1.2808]
[1729738676718,3.52395,2554.0,2553.7,1.2808]
[1729738676915,3.52376,2554.1,2553.7,2.56549955]
[1729738677309,3.52376,2554.1,2553.7,1.2808]
[1729738682062,3.52348,2554.3,2553.9,1.28469955]
[1729738682361,3.52343,2554.4,2554.0,1.2808]
[1729738682765,3.52343,2554.4,2554.0,2.56549955]
[1729738682967,3.52343,2554.4,2554.1,0.03546323]
[1729738686001,3.52348,2554.3,2554.1,0.03546323]
[1729738686506,6.10929955,2554.2,2554.1,0.03546323]
[1729738686797,3.52408,2553.9,2553.5,1.2808]
[1729738687001,7.04823,2553.9,2553.5,1.2808]
[1729738688195,3.52417,2553.8,2553.5,1.2808]
[1729738689130,3.52417,2553.8,2553.1,7.65092894]
[1729738689131,4.77127,2554.5,2553.8,1.3352]
[1729738689312,4.77127,2554.5,2554.1,1.28469955]
[1729738689513,3.52327,2554.5,2554.1,1.28469955]
[1729738689715,3.52327,2554.5,2554.2,1.3352]
[1729738689929,3.52327,2554.5,2554.0,2.61989955]
[1729738690130,1.248,2554.4,2553.8,2.61989955]
[1729738690504,1.248,2554.4,2553.9,1.28469955]
[1729738690710,4.7714,2554.4,2554.0,1.28469955]
[1729738690917,4.7714,2554.4,2553.9,1.28469955]
[1729738691698,1.248,2554.4,2553.9,1.28469955]
[1729738692000,3.52326,2554.5,2554.0,0.26198996]
[1729738692199,3.52326,2554.5,2554.0,1.54668951]
[1729738692436,3.52337,2554.4,2554.0,1.54668951]
[1729738693004,3.52347,2554.3,2554.0,0.26198996]
[1729738693206,3.52347,2554.3,2553.8,2.61989955]
[1729738694233,3.52328,2554.5,2554.0,1.28469955]
[1729738694534,3.52328,2554.5,2553.9,1.28469955]
[1729738695042,4.80797955,2554.5,2553.8,2.61989955]
[1729738695337,7.04707,2554.3,2553.8,2.61989955]
[1729738695533,3.52347,2554.3,2553.8,3.23431951]
[1729738696504,1.248,2554.6,2553.9,1.28469955]
[1729738696867,7.04653,2554.5,2554.1,1.3352]
[1729738697010,3.52326,2554.5,2554.1,1.3352]
[1729738699348,3.52307,2554.6,2554.1,2.61989955]
[1729738699640,3.52299,2554.7,2554.2,1.54668951]
[1729738700144,3.52299,2554.7,2554.2,0.26198996]
[1729738700506,3.52299,2554.7,2554.2,1.54668951]
[1729738700835,3.52272,2554.9,2554.7,1.3352]
[1729738701220,3.5225,2555.0,2554.7,1.3352]
[1729738701844,3.52245,2555.1,2554.7,1.3352]
[1729738702050,3.52265,2554.9,2554.7,1.3352]
[1729738702250,3.52167,2555.6,2555.0,1.3352]
[1729738702464,3.52104,2556.1,2555.0,1.3352]
[1729738702623,3.52104,2556.1,2554.8,1.53332983]
[1729738702624,3.52114,2556.0,2555.8,1.28469955]
[1729738702812,0.1237382,2556.4,2555.9,2.61989955]
[1729738703013,3.52092,2556.2,2555.9,1.3352]
[1729738703252,3.47092,2556.2,2555.9,1.3352]
[1729738703547,0.1237382,2556.4,2555.9,1.3352]
[1729738704163,0.1237382,2556.4,2556.0,1.28469955]
[1729738704459,3.6443882,2556.4,2555.9,1.3352]
[1729738704753,0.1237382,2556.4,2555.9,1.3352]
[1729738705349,0.1237382,2556.4,2556.0,0.07824002]
[1729738705724,0.1237382,2556.4,2555.9,1.3352]
[1729738705923,0.1237382,2556.4,2556.2,1.3533]
[1729738706223,0.1237382,2556.4,2556.3,0.42207289]
[1729738706637,0.1237382,2556.4,2556.3,1.02217967]
[1729738706863,0.1237382,2556.4,2556.3,0.42207289]
[1729738709121,0.1237382,2556.4,2556.2,1.3533]
[1729738709723,1.3826,2557.2,2556.2,1.3533]
[1729738709724,3.5193,2557.4,2556.7,3.52005]
[1729738709937,3.51948,2557.2,2556.7,2.86742889]
[1729738710160,3.5197,2557.1,2556.5,5.42361]
[1729738710458,3.52003,2556.8,2556.5,1.3533]
[1729738710662,3.52003,2556.8,2556.2,1.3533]
[1729738710837,3.52019,2556.7,2556.3,0.487419]
[1729738711461,3.52,2556.9,2556.3,4.008119]
[1729738711962,4.90242,2557.0,2556.3,4.008049]
[1729738712141,8.42226,2557.0,2556.3,4.008049]
[1729738712346,3.51989,2556.9,2556.3,4.008049]
[1729738712646,3.51989,2556.9,2556.4,0.5361349]
[1729738713032,3.52002,2556.8,2556.4,0.5361349]
[1729738714544,3.52002,2556.8,2556.3,0.487419]
[1729738715675,3.52002,2556.8,2556.3,4.008109]
[1729738717352,3.52002,2556.8,2556.3,0.487419]
[1729738717545,3.52019,2556.7,2556.2,1.3533]
[1729738718441,3.52033,2556.6,2556.2,1.3533]
[1729738718969,3.52017,2556.7,2556.2,1.3533]
[1729738719333,3.52007,2556.8,2556.2,1.840727]
[1729738719577,3.51981,2557.0,2556.2,1.840727]
[1729738719764,7.03964,2557.0,2556.4,3.52057]
[1729738720085,3.51988,2556.9,2556.4,3.52057]
[1729738720748,3.52004,2556.8,2556.2,5.361457]
[1729738721150,3.52004,2556.8,2556.2,8.882217]
[1729738721350,3.52004,2556.8,2556.2,5.361457]
[1729738721553,3.52004,2556.8,2556.2,8.882227]
[1729738722239,1.3826,2556.7,2556.2,1.3533]
[1729738722555,3.52004,2556.8,2556.2,4.87413]
[1729738722963,3.52029,2556.7,2556.2,1.3533]
[1729738723275,3.52031,2556.6,2556.2,1.3533]
[1729738723466,3.52045,2556.5,2556.2,1.3533]
[1729738724537,7.04096,2556.5,2556.2,1.3533]
[1729738724746,3.52045,2556.5,2556.2,1.3533]
[1729738724975,7.04098,2556.5,2556.2,1.3533]
[1729738725296,7.04098,2556.5,2556.0,1.3533]
[1729738725297,3.52045,2556.5,2556.0,1.3533]
[1729738725769,3.52058,2556.4,2556.0,1.3533]
[1729738725973,0.490224,2556.9,2556.1,3.52097]
[1729738725974,3.52019,2556.7,2556.1,3.52097]
[1729738726360,3.52019,2556.7,2556.0,5.76152624]
[1729738726560,7.04044,2556.7,2556.1,3.52097]
[1729738726951,7.04044,2556.7,2556.0,5.76152624]
[1729738726952,3.52019,2556.7,2556.0,5.76152624]
[1729738727173,3.5203,2556.6,2556.0,9.28257624]
[1729738727486,3.52019,2556.7,2556.1,4.42771593]
[1729738727795,7.04047,2556.7,2556.2,1.3533]
[1729738728378,3.52019,2556.7,2556.2,1.3533]
[1729738728690,3.52019,2556.7,2556.0,3.52105]
[1729738728691,3.52112,2556.0,2555.9,1.82859236]
[1729738728851,3.52112,2556.0,2555.9,0.47529236]
[1729738728852,3.873232,2556.0,2555.9,0.47529236]
[1729738729197,3.52158,2555.7,2555.3,1.3533]
[1729738730052,3.52176,2555.6,2555.3,1.3533]